fUST/lending_fUST_20260418
["ID","MTS","AMOUNT","RATE_DAILY","PERIOD"]
[420709229,1776471444549,500.0,0.0002449,120]
[420709230,1776471744371,500.0,0.0002449,120]
[420709234,1776472044633,500.0,0.0002449,120]
[420709236,1776472118254,305.0,0.0002449,120]
[420709237,1776472206140,157.0,0.0002449,120]
[420709258,1776472232578,-689.83129044,6.619e-05,2]
[420709259,1776472232587,-514.0,6.619e-05,2]
[420709260,1776472232597,-3982.16870956,6.686e-05,2]
[420709261,1776472232688,-305.09082963,6.686e-05,2]
[420709287,1776472239027,-663.63206854,6.686e-05,2]
[420709336,1776472241242,-49.10839227,6.686e-05,2]
[420709338,1776472241252,-330.78150208,6.788e-05,2]
[420709340,1776472241262,-300.0,7.318e-05,2]
[420709342,1776472241273,-132.1570078,7.319e-05,2]
[420709730,1776472245445,-407.64,7.319e-05,2]
[420709731,1776472245501,-382.91828592,7.319e-05,2]
[420709736,1776472247078,-579.40833256,7.319e-05,2]
[420709737,1776472247090,-2545.72520708,7.319e-05,2]
[420709738,1776472247295,-483.90748233,7.319e-05,2]
[420709798,1776472290966,200.0,0.00021103,120]
[420709803,1776472340000,342.0,0.0002449,120]
[420709804,1776472345347,219.5,0.0002449,120]
[420709805,1776472351210,200.0,0.00022204,120]
[420709807,1776472365016,176.9583481,0.0002449,120]
[420709808,1776472434528,635.0,0.0002449,120]
[420709811,1776472470436,200.0,0.00024587,120]
[420709813,1776472526877,378.0,0.0002449,120]
[420709814,1776472530918,200.0,0.00024453,120]
[420709816,1776472550003,500.0,0.0002449,120]
[420709817,1776472606583,153.0,0.00024492,120]
[420709819,1776472650509,200.0,0.00023904,120]
[420709820,1776472680773,153.0,0.00024492,120]
[420709828,1776472996508,268.0,0.00024,120]
[420709830,1776473023553,1000.0,0.00024658,120]
[420709851,1776473376767,200.0,0.00024658,120]
[420709852,1776473387981,200.0,0.00024658,120]
[420709853,1776473421891,184.01,0.00024658,120]
[420709880,1776473432113,-196.4268325,6.549e-05,2]
[420709881,1776473432123,-4113.5731675,6.738e-05,2]
[420709882,1776473432134,-700.0,6.738e-05,2]
[420709913,1776473437475,289.0,0.00024492,120]
[420709932,1776473439863,-186.4268325,6.738e-05,2]
[420709933,1776473439873,-516.0,6.738e-05,2]
[420709934,1776473439882,-338.06265809,6.806e-05,2]
[420709935,1776473439894,-384.663,6.977e-05,2]
[420709936,1776473439905,-120.84750941,7.017e-05,2]
[420709951,1776473443185,-179.15249059,7.017e-05,2]
[420709952,1776473443195,-500.0,7.018e-05,2]
[420709953,1776473443204,-497.84750941,7.018e-05,2]
[420709954,1776473443239,-54.86665678,7.018e-05,2]
[420709955,1776473443248,-552.93319571,7.018e-05,2]
[420709956,1776473443258,-500.0,7.018e-05,2]
[420709957,1776473443267,-500.0,7.018e-05,2]
[420709958,1776473443276,-500.0,7.018e-05,2]
[420709959,1776473443285,-234.24415412,7.018e-05,2]
[420709968,1776473446295,-265.75584588,7.018e-05,2]
[420709970,1776473446306,-500.0,7.018e-05,2]
[420709971,1776473446315,-500.0,7.018e-05,2]
[420709972,1776473446327,-500.0,7.018e-05,2]
[420709973,1776473446337,-500.0,7.018e-05,2]
[420709974,1776473446347,-500.0,7.018e-05,2]
[420709975,1776473446359,-500.0,7.018e-05,2]
[420709976,1776473446369,-126.58602307,7.018e-05,2]
[420709977,1776473526063,158.0,0.00024492,120]
[420709978,1776473564741,217.24034679,0.00024492,120]
[420709979,1776473564776,203.16031039,0.00024492,120]
[420709980,1776473564811,166.17186908,0.00024492,120]
[420709981,1776473564844,253.11860448,0.00024492,120]
[420709982,1776473564877,557.32099694,0.00024492,120]
[420709983,1776473565105,203.16031039,0.00024492,120]
[420709984,1776473565140,166.17186908,0.00024492,120]
[420709985,1776473565181,557.32099694,0.00024492,120]
[420709986,1776473565389,203.16031039,0.00024492,120]
[420709987,1776473565475,557.32099694,0.00024492,120]
[420709988,1776473565542,166.17186908,0.00024492,120]
[420709989,1776473565674,203.16031039,0.00024492,120]
[420709990,1776473565797,557.32099694,0.00024492,120]
[420709991,1776473565838,166.17186908,0.00024492,120]
[420709992,1776473565963,203.16031039,0.00024492,120]
[420709993,1776473566100,557.32099694,0.00024492,120]
[420709994,1776473566134,166.17186908,0.00024492,120]
[420709995,1776473566247,203.16031039,0.00024492,120]
[420709996,1776473566434,166.17186908,0.00024492,120]
[420709997,1776473566469,557.32099694,0.00024492,120]
[420709998,1776473566563,203.16031039,0.00024492,120]
[420709999,1776473566790,557.32099694,0.00024492,120]
[420710000,1776473566857,203.16031039,0.00024492,120]
[420710001,1776473567078,557.32099694,0.00024492,120]
[420710002,1776473567147,203.16031039,0.00024492,120]
[420710003,1776473567400,557.32099694,0.00024492,120]
[420710004,1776473567746,203.16031039,0.00024492,120]
[420710005,1776473567803,557.32099694,0.00024492,120]
[420710006,1776473568059,203.16031039,0.00024492,120]
[420710007,1776473568102,557.32099694,0.00024492,120]
[420710008,1776473568349,203.16031039,0.00024492,120]
[420710009,1776473568682,557.32099694,0.00024492,120]
[420710010,1776473568859,203.16031039,0.00024492,120]
[420710011,1776473568896,557.32099694,0.00024492,120]
[420710012,1776473568960,203.16031039,0.00024492,120]
[420710013,1776473569016,557.32099694,0.00024492,120]
[420710014,1776473569257,203.16031039,0.00024492,120]
[420710015,1776473569490,557.32099694,0.00024492,120]
[420710016,1776473569588,557.32099694,0.00024492,120]
[420710017,1776473569881,557.32099694,0.00024492,120]
[420710018,1776473570165,557.32099694,0.00024492,120]
[420710019,1776473570460,557.32099694,0.00024492,120]
[420710021,1776473665800,325.0,0.00024492,120]
[420710022,1776473684708,166.17186906,0.00024492,120]
[420710023,1776473684752,278.66049842,0.00024492,120]
[420710024,1776473685045,278.66049842,0.00024492,120]
[420710027,1776473761185,603.0,0.0002451,120]
[420710028,1776473853184,359.0,0.0002451,120]
[420710029,1776473931947,153.0,0.0002451,120]
[420710031,1776473995947,600.2,0.0002451,120]
[420710032,1776474002610,153.0,0.0002451,120]
[420710037,1776474351968,650.64,0.00024542,120]
[420710058,1776474632231,-5000.0,5.488e-05,2]
[420710059,1776474632240,-500.0,5.543e-05,2]
[420710060,1776474632250,-176.62436523,5.543e-05,2]
[420710061,1776474632259,-353.51944473,5.787e-05,2]
[420710062,1776474632268,-300.0,5.904e-05,2]
[420710063,1776474632278,-31.56485084,5.904e-05,2]
[420710064,1776474632349,-700.499995,5.904e-05,2]
[420710173,1776474638643,-43.93515416,5.904e-05,2]
[420710174,1776474638654,-3416.8980812,5.905e-05,2]
[420710176,1776474638663,-22.5900632,5.952e-05,2]
[420710187,1776474638762,-1781.05655342,5.952e-05,2]
[420710188,1776474638773,-1584.06535673,5.952e-05,2]
[420710189,1776474638783,-300.0,6.07e-05,2]
[420710190,1776474638792,-300.0,6.07e-05,2]
[420710191,1776474638802,-300.0,6.07e-05,2]
[420710192,1776474638812,-300.0,6.07e-05,2]
[420710193,1776474638822,-300.0,6.07e-05,2]
[420710194,1776474638831,-300.0,6.07e-05,2]
[420710195,1776474638840,-300.0,6.07e-05,2]
[420710196,1776474638850,-300.0,6.07e-05,2]
[420710197,1776474638859,-300.0,6.07e-05,2]
[420710198,1776474638868,-300.0,6.07e-05,2]
[420710199,1776474638878,-300.0,6.07e-05,2]
[420710200,1776474638888,-300.0,6.07e-05,2]
[420710201,1776474638897,-300.0,6.07e-05,2]
[420710202,1776474638906,-300.0,6.07e-05,2]
[420710203,1776474638915,-300.0,6.07e-05,2]
[420710204,1776474638925,-785.96693237,6.07e-05,2]
[420710205,1776474638934,-600.0,6.19e-05,2]
[420710206,1776474638943,-420.0,6.494e-05,2]
[420710207,1776474638952,-172.92572073,6.623e-05,2]
[420710208,1776474638962,-500.0,6.693e-05,2]
[420710209,1776474638971,-500.0,6.693e-05,2]
[420710210,1776474638980,-500.0,6.693e-05,2]
[420710211,1776474638989,-215.34480787,6.693e-05,2]
[420710212,1776474638999,-200.84663778,6.718e-05,2]
[420710213,1776474639008,-500.0,6.718e-05,2]
[420710214,1776474639017,-500.0,6.718e-05,2]
[420710215,1776474639026,-500.0,6.718e-05,2]
[420710216,1776474639036,-500.0,6.718e-05,2]
[420710217,1776474639045,-500.0,6.718e-05,2]
[420710218,1776474639055,-500.0,6.718e-05,2]
[420710219,1776474639065,-500.0,6.718e-05,2]
[420710220,1776474639074,-500.0,6.718e-05,2]
[420710221,1776474639083,-274.54001849,6.718e-05,2]
[420710222,1776474639092,-500.0,6.718e-05,2]
[420710223,1776474639102,-500.0,6.718e-05,2]
[420710224,1776474639111,-500.0,6.718e-05,2]
[420710225,1776474639120,-500.0,6.718e-05,2]
[420710226,1776474639129,-500.0,6.718e-05,2]
[420710227,1776474639138,-500.0,6.718e-05,2]
[420710228,1776474639147,-500.0,6.718e-05,2]
[420710229,1776474639157,-500.0,6.718e-05,2]
[420710230,1776474639165,-500.0,6.718e-05,2]
[420710231,1776474639175,-500.0,6.718e-05,2]
[420710232,1776474639184,-425.50705677,6.718e-05,2]
[420710233,1776474639193,-175.88811252,6.718e-05,2]
[420710234,1776474639202,-500.0,6.718e-05,2]
[420710235,1776474639211,-500.0,6.718e-05,2]
[420710236,1776474639220,-500.0,6.718e-05,2]
[420710237,1776474639229,-500.0,6.718e-05,2]
[420710238,1776474639239,-500.0,6.718e-05,2]
[420710239,1776474639248,-500.0,6.718e-05,2]
[420710240,1776474639257,-500.0,6.718e-05,2]
[420710241,1776474639266,-500.0,6.718e-05,2]
[420710242,1776474639275,-500.0,6.718e-05,2]
[420710243,1776474639285,-500.0,6.718e-05,2]
[420710244,1776474639294,-500.0,6.718e-05,2]
[420710245,1776474639303,-500.0,6.718e-05,2]
[420710246,1776474639312,-500.0,6.718e-05,2]
[420710247,1776474639322,-284.7907791,6.718e-05,2]
[420710248,1776474639331,-500.0,6.718e-05,2]
[420710249,1776474639340,-500.0,6.718e-05,2]
[420710250,1776474639350,-500.0,6.718e-05,2]
[420710251,1776474639359,-250.0,6.718e-05,2]
[420710252,1776474639369,-500.0,6.718e-05,2]
[420710253,1776474639378,-217781.83501217,6.719e-05,2]
[420710254,1776474639387,-549651.00853405,6.719e-05,2]
[420710255,1776474639396,-2040.41367395,6.719e-05,2]
[420710256,1776474639406,-2040.41367392,6.739e-05,2]
[420710257,1776474639415,-2040.41367392,6.76e-05,2]
[420710258,1776474639425,-2040.41367392,6.78e-05,2]
[420710259,1776474639435,-151.0,6.8e-05,2]
[420710260,1776474639444,-288.360296,6.8e-05,2]
[420710261,1776474639453,-2040.41367392,6.8e-05,2]
[420710262,1776474639468,-720.0,6.809e-05,2]
[420710263,1776474639478,-500.0,6.818e-05,2]
[420710264,1776474639488,-521.30574985,6.818e-05,2]
[420710265,1776474639497,-500.0,6.907e-05,2]
[420710266,1776474639506,-500.0,6.907e-05,2]
[420710267,1776474639516,-503.49191651,6.907e-05,2]
[420710268,1776474639525,-500.0,6.91e-05,2]
[420710269,1776474639535,-151.0,6.91e-05,2]
[420710270,1776474639544,-370.73,6.91e-05,2]
[420710271,1776474639554,-151.0,6.918e-05,2]
[420710272,1776474639564,-151.0,6.918e-05,2]
[420710273,1776474639573,-151.0,6.918e-05,2]
[420710274,1776474639583,-151.0,6.918e-05,2]
[420710275,1776474639592,-167.377964,7.162e-05,2]
[420710276,1776474639601,-1000.0,7.241e-05,2]
[420710277,1776474639611,-1000.0,7.241e-05,2]
[420710278,1776474639620,-1000.0,7.241e-05,2]
[420710279,1776474639630,-264.06,7.255e-05,2]
[420710280,1776474639640,-332.980311,7.288e-05,2]
[420710281,1776474639649,-19774.7259415,7.288e-05,2]
[420710282,1776474639659,-2058.8351766,7.288e-05,2]
[420710283,1776474639669,-1000.0,7.3e-05,2]
[420710284,1776474639678,-151.0,7.408e-05,2]
[420710285,1776474639688,-201.9372222,7.408e-05,2]
[420710286,1776474639697,-2322.7633854,7.464e-05,2]
[420710287,1776474639706,-158.44,7.479e-05,2]
[420710288,1776474639716,-864.0,7.49e-05,2]
[420710289,1776474639725,-502.44216819,7.531e-05,2]
[420710290,1776474639735,-502.83598002,7.531e-05,2]
[420710291,1776474639744,-500.0,7.607e-05,2]
[420710292,1776474639754,-500.0,7.619e-05,2]
[420710293,1776474639764,-537.6845,7.646e-05,2]
[420710295,1776474639773,-2150.738,7.646e-05,2]
[420710297,1776474639782,-542.0,7.7e-05,2]
[420710298,1776474639791,-557.5788265,7.701e-05,2]
[420710299,1776474639801,-150.572,7.734e-05,2]
[420710300,1776474639811,-151.17,7.734e-05,2]
[420710301,1776474639820,-1408.0,7.734e-05,2]
[420710302,1776474639830,-2202.0,7.734e-05,2]
[420710303,1776474639840,-645.0,7.734e-05,2]
[420710304,1776474639849,-441.0,7.734e-05,2]
[420710305,1776474639859,-536.777,7.734e-05,2]
[420710306,1776474639868,-739.0,7.734e-05,2]
[420710307,1776474639877,-184.0,7.734e-05,2]
[420710308,1776474639886,-578.20924308,7.756e-05,2]
[420710309,1776474639896,-417.15294479,7.787e-05,2]
[420710310,1776474639905,-1500.0,7.788e-05,2]
[420710311,1776474639914,-1500.0,7.788e-05,2]
[420710312,1776474639923,-1500.0,7.788e-05,2]
[420710313,1776474639933,-160.0,7.802e-05,2]
[420710314,1776474639942,-599.60298507,7.811e-05,2]
[420710315,1776474639952,-621.78829552,7.866e-05,2]
[420710316,1776474639961,-644.79446246,7.921e-05,2]
[420710317,1776474639970,-668.65185757,7.976e-05,2]
[420710318,1776474639979,-693.3919763,8.031e-05,2]
[420710319,1776474639989,-719.04747942,8.086e-05,2]
[420710320,1776474639998,-455.2174276,8.108e-05,2]
[420710321,1776474640007,-494.97371081,8.141e-05,2]
[420710322,1776474640016,-2230.315306,8.194e-05,2]
[420710323,1776474640025,-4412.3377662,8.212e-05,2]
[420710324,1776474640034,-155.0,8.218e-05,2]
[420710325,1776474640043,-988.1821,8.219e-05,2]
[420710326,1776474640053,-500.0,8.219e-05,2]
[420710327,1776474640062,-500.0,8.219e-05,2]
[420710328,1776474640071,-500.0,8.219e-05,2]
[420710329,1776474640080,-500.0,8.219e-05,2]
[420710330,1776474640089,-500.0,8.219e-05,2]
[420710331,1776474640099,-500.0,8.219e-05,2]
[420710332,1776474640108,-500.0,8.219e-05,2]
[420710334,1776474640118,-500.0,8.219e-05,2]
[420710335,1776474640127,-178.5084258,8.219e-05,2]
[420710336,1776474640136,-887.4,8.219e-05,2]
[420710337,1776474640146,-2749.23,8.219e-05,2]
[420710338,1776474640157,-620.43,8.219e-05,2]
[420710339,1776474640166,-500.0,8.219e-05,2]
[420710340,1776474640175,-1018.75,8.219e-05,2]
[420710341,1776474640185,-844.26,8.219e-05,2]
[420710342,1776474640194,-500.0,8.219e-05,2]
[420710343,1776474640203,-500.0,8.219e-05,2]
[420710344,1776474640213,-236.0,8.219e-05,2]
[420710345,1776474640222,-500.0,8.219e-05,2]
[420710346,1776474640231,-500.0,8.219e-05,2]
[420710347,1776474640240,-500.0,8.219e-05,2]
[420710348,1776474640250,-443.46687558,8.219e-05,2]
[420710349,1776474640258,-388.60926628,8.219e-05,2]
[420710350,1776474640268,-500.0,8.219e-05,2]
[420710351,1776474640277,-500.0,8.219e-05,2]
[420710352,1776474640286,-867.57,8.219e-05,2]
[420710353,1776474640296,-808.14,8.219e-05,2]
[420710354,1776474640305,-2712.31,8.219e-05,2]
[420710355,1776474640314,-500.0,8.219e-05,2]
[420710356,1776474640324,-500.0,8.219e-05,2]
[420710357,1776474640333,-630.38,8.219e-05,2]
[420710358,1776474640343,-500.0,8.219e-05,2]
[420710361,1776474640352,-500.0,8.219e-05,2]
[420710363,1776474640361,-1378.19,8.219e-05,2]
[420710365,1776474640371,-1326.17,8.219e-05,2]
[420710367,1776474640381,-500.0,8.219e-05,2]
[420710370,1776474640391,-500.0,8.219e-05,2]
[420710372,1776474640400,-500.0,8.219e-05,2]
[420710375,1776474640409,-574.14,8.219e-05,2]
[420710377,1776474640419,-976.95,8.219e-05,2]
[420710379,1776474640428,-500.0,8.219e-05,2]
[420710381,1776474640438,-500.0,8.219e-05,2]
[420710383,1776474640447,-500.0,8.219e-05,2]
[420710385,1776474640456,-151.5,8.219e-05,2]
[420710387,1776474640466,-151.5,8.219e-05,2]
[420710390,1776474640477,-151.5,8.219e-05,2]
[420710392,1776474640487,-151.5,8.219e-05,2]
[420710394,1776474640497,-718.13,8.219e-05,2]
[420710396,1776474640506,-246.86277426,8.219e-05,2]
[420710398,1776474640516,-500.0,8.219e-05,2]
[420710400,1776474640525,-151.5,8.219e-05,2]
[420710402,1776474640535,-151.5,8.219e-05,2]
[420710404,1776474640545,-151.5,8.219e-05,2]
[420710406,1776474640554,-274.76789038,8.219e-05,2]
[420710408,1776474640564,-500.0,8.219e-05,2]
[420710410,1776474640574,-3208.04,8.219e-05,2]
[420710412,1776474640583,-692.9,8.219e-05,2]
[420710414,1776474640593,-7792.6,8.219e-05,2]
[420710415,1776474640602,-959.89,8.219e-05,2]
[420710417,1776474640612,-1172.58,8.219e-05,2]
[420710419,1776474640621,-500.0,8.219e-05,2]
[420710421,1776474640631,-500.0,8.219e-05,2]
[420710423,1776474640640,-500.0,8.219e-05,2]
[420710425,1776474640649,-500.0,8.219e-05,2]
[420710426,1776474640659,-799.52,8.219e-05,2]
[420710427,1776474640668,-500.0,8.219e-05,2]
[420710428,1776474640678,-1599.18,8.219e-05,2]
[420710429,1776474640688,-500.0,8.219e-05,2]
[420710430,1776474640697,-500.0,8.219e-05,2]
[420710431,1776474640706,-500.0,8.219e-05,2]
[420710432,1776474640715,-500.0,8.219e-05,2]
[420710433,1776474640724,-521.10095953,8.219e-05,2]
[420710434,1776474640734,-161.04971,8.219e-05,2]
[420710435,1776474640744,-1329.98,8.219e-05,2]
[420710436,1776474640753,-500.0,8.219e-05,2]
[420710437,1776474640762,-1489.01,8.219e-05,2]
[420710438,1776474640773,-3929.74,8.219e-05,2]
[420710439,1776474640782,-500.0,8.219e-05,2]
[420710440,1776474640791,-500.0,8.219e-05,2]
[420710441,1776474640800,-318.84691008,8.219e-05,2]
[420710442,1776474640810,-994.78,8.219e-05,2]
[420710443,1776474640819,-2302.89,8.219e-05,2]
[420710444,1776474640828,-230.17119439,8.219e-05,2]
[420710445,1776474640838,-1307.95,8.219e-05,2]
[420710446,1776474640847,-1975.25,8.219e-05,2]
[420710447,1776474640856,-500.0,8.219e-05,2]
[420710448,1776474640865,-500.0,8.219e-05,2]
[420710449,1776474640875,-500.0,8.219e-05,2]
[420710450,1776474640884,-969.52851367,8.219e-05,2]
[420710451,1776474640900,-2.51148633,8.219e-05,2]
[420710452,1776474640909,-500.0,8.219e-05,2]
[420710453,1776474640919,-500.0,8.219e-05,2]
[420710454,1776474640928,-507.07506487,8.219e-05,2]
[420710455,1776474641142,-500.0,6.718e-05,2]
[420710456,1776474641152,-500.0,6.718e-05,2]
[420710457,1776474641162,-1415.90493513,8.219e-05,2]
[420710458,1776474641171,-986.02,8.219e-05,2]
[420710459,1776474641180,-221.44,8.219e-05,2]
[420710460,1776474641190,-422.96176147,8.219e-05,2]
[420710461,1776474641256,-77.03823853,8.219e-05,2]
[420710462,1776474641266,-861.86,8.219e-05,2]
[420710463,1776474641275,-500.0,8.219e-05,2]
[420710464,1776474641285,-326.48789876,8.219e-05,2]
[420710496,1776474646654,-346.44905584,5.904e-05,2]
[420710497,1776474646664,-408.80988589,7.904e-05,2]
[420710498,1776474646673,-500.0,8.219e-05,2]
[420710499,1776474646683,-500.0,8.219e-05,2]
[420710500,1776474646693,-173.51210124,8.219e-05,2]
[420710501,1776474646702,-243.57,8.219e-05,2]
[420710502,1776474646712,-455.5804923,8.23e-05,2]
[420710503,1776474646721,-358.43822929,8.249e-05,2]
[420710504,1776474646730,-2000.0,8.336e-05,2]
[420710505,1776474646739,-2000.0,8.336e-05,2]
[420710506,1776474646748,-2000.0,8.336e-05,2]
[420710507,1776474646757,-1504.09566132,8.387e-05,2]
[420710508,1776474646767,-4.8965466,8.418e-05,2]
[420710509,1776474646828,-979.6290858,8.418e-05,2]
[420710510,1776474646838,-988.1821,8.493e-05,2]
[420710511,1776474646847,-500.0,8.493e-05,2]
[420710512,1776474646856,-500.0,8.493e-05,2]
[420710513,1776474646866,-500.0,8.493e-05,2]
[420710514,1776474646877,-500.0,8.493e-05,2]
[420710515,1776474646887,-500.0,8.493e-05,2]
[420710516,1776474646898,-500.0,8.493e-05,2]
[420710517,1776474646909,-500.0,8.493e-05,2]
[420710518,1776474646918,-500.0,8.493e-05,2]
[420710519,1776474646928,-887.4,8.493e-05,2]
[420710520,1776474646938,-1425.63881419,8.493e-05,2]
[420710521,1776474739545,1450.0,0.00024543,120]
[420710522,1776474763974,275.0,0.00024542,120]
[420710523,1776474764708,375.0,0.00024543,120]
[420710524,1776474765006,375.0,0.00024543,120]
[420710525,1776474765305,375.0,0.00024543,120]
[420710526,1776474765599,375.0,0.00024543,120]
[420710527,1776474765898,375.0,0.00024543,120]
[420710528,1776474766333,375.0,0.00024543,120]
[420710529,1776474766654,375.0,0.00024543,120]
[420710530,1776474766940,375.0,0.00024543,120]
[420710536,1776474852877,158.0,0.00024543,120]
[420710537,1776474965446,-502.0,5.686e-05,2]
[420710538,1776474965500,-344.27257359,5.687e-05,2]
[420710539,1776474965523,-2694.00742641,5.687e-05,2]
[420710540,1776474996660,308.0,0.00024543,120]
[420710541,1776475020309,200.0,5.686e-05,2]
[420710542,1776475036575,100.0,5.686e-05,2]
[420710543,1776475084280,573.0,0.00024518,120]
[420710544,1776475172398,341.0,0.00024518,120]
[420710545,1776475232756,10000.0,0.00024658,120]
[420710547,1776475240896,10000.0,0.00024658,120]
[420710548,1776475251208,10000.0,0.00024658,120]
[420710549,1776475257211,153.0,0.00024518,120]
[420710550,1776475268289,8598.0,0.00024658,120]
[420710552,1776475323712,153.0,0.00024518,120]
[420710553,1776475387614,949.937,0.00024518,120]
[420710586,1776475832882,-5000.0,5.147e-05,2]
[420710715,1776475841309,-275.752,5.199e-05,2]
[420710716,1776475841319,-502.0,5.299e-05,2]
[420710718,1776475841328,-337.38712212,5.435e-05,2]
[420710720,1776475841338,-442.628012,5.957e-05,2]
[420710722,1776475841347,-442.628012,6.208e-05,2]
[420710724,1776475841356,-296.584,6.387e-05,2]
[420710726,1776475841366,-129.42085387,6.458e-05,2]
[420710800,1776475844034,-313.20715813,6.458e-05,2]
[420710801,1776475844044,-782.0,6.49e-05,2]
[420710802,1776475844053,-300.0,6.492e-05,2]
[420710803,1776475844063,-300.0,6.492e-05,2]
[420710804,1776475844072,-500.0,6.493e-05,2]
[420710805,1776475844081,-500.0,6.516e-05,2]
[420710806,1776475844090,-500.0,6.516e-05,2]
[420710807,1776475844100,-500.0,6.516e-05,2]
[420710808,1776475844109,-500.0,6.516e-05,2]
[420710809,1776475844119,-500.0,6.516e-05,2]
[420710810,1776475844128,-500.0,6.516e-05,2]
[420710811,1776475844137,-500.0,6.516e-05,2]
[420710812,1776475844147,-500.0,6.516e-05,2]
[420710813,1776475844156,-500.0,6.516e-05,2]
[420710814,1776475844165,-500.0,6.516e-05,2]
[420710815,1776475844175,-500.0,6.516e-05,2]
[420710816,1776475844184,-500.0,6.516e-05,2]
[420710817,1776475844193,-500.0,6.516e-05,2]
[420710818,1776475844203,-601.21242704,6.516e-05,2]
[420710819,1776475844213,-500.0,6.516e-05,2]
[420710820,1776475844222,-500.0,6.516e-05,2]
[420710821,1776475844232,-500.0,6.516e-05,2]
[420710822,1776475844241,-500.0,6.516e-05,2]
[420710823,1776475844250,-500.0,6.516e-05,2]
[420710824,1776475844259,-500.0,6.516e-05,2]
[420710825,1776475844269,-500.0,6.516e-05,2]
[420710826,1776475844278,-500.0,6.516e-05,2]
[420710827,1776475844288,-500.0,6.516e-05,2]
[420710828,1776475844297,-500.0,6.516e-05,2]
[420710829,1776475844306,-500.0,6.516e-05,2]
[420710830,1776475844315,-500.0,6.516e-05,2]
[420710831,1776475844324,-500.0,6.516e-05,2]
[420710832,1776475844334,-500.0,6.516e-05,2]
[420710833,1776475844344,-500.0,6.516e-05,2]
[420710834,1776475844353,-637.9855606,6.516e-05,2]
[420710835,1776475844362,-500.0,6.516e-05,2]
[420710836,1776475844371,-500.0,6.516e-05,2]
[420710837,1776475844381,-500.0,6.516e-05,2]
[420710838,1776475844390,-442.628012,6.709e-05,2]
[420710839,1776475844400,-600.0,6.749e-05,2]
[420710840,1776475844409,-300.0,6.749e-05,2]
[420710841,1776475844418,-442.628012,6.96e-05,2]
[420710842,1776475844427,-442.628012,7.211e-05,2]
[420710843,1776475844437,-2150.738,7.397e-05,2]
[420710844,1776475844446,-720.0,7.424e-05,2]
[420710845,1776475844455,-398.1168041,7.435e-05,2]
[420710846,1776475844465,-642.0,7.734e-05,2]
[420710847,1776475844474,-441.0,7.734e-05,2]
[420710848,1776475844484,-536.777,7.734e-05,2]
[420710850,1776475844494,-739.0,7.734e-05,2]
[420710851,1776475844503,-184.0,7.734e-05,2]
[420710852,1776475844513,-160.0,7.773e-05,2]
[420710853,1776475844522,-1587.20200325,7.945e-05,2]
[420710854,1776475844535,-643.11330275,7.945e-05,2]
[420710855,1776475844544,-864.0,8.167e-05,2]
[420710856,1776475844554,-500.0,8.192e-05,2]
[420710857,1776475844564,-354.67,8.2e-05,2]
[420710858,1776475844573,-500.0,8.219e-05,2]
[420710859,1776475844583,-285.23455019,8.219e-05,2]
[420710860,1776475844592,-500.0,8.219e-05,2]
[420710861,1776475844601,-500.0,8.219e-05,2]
[420710862,1776475844611,-500.0,8.219e-05,2]
[420710863,1776475844630,-500.0,8.219e-05,2]
[420710864,1776475844640,-500.0,8.219e-05,2]
[420710865,1776475844649,-500.0,8.219e-05,2]
[420710866,1776475844659,-500.0,8.219e-05,2]
[420710867,1776475844668,-500.0,8.219e-05,2]
[420710868,1776475844677,-474.86467227,8.219e-05,2]
[420710869,1776475844689,-500.0,8.219e-05,2]
[420710870,1776475844699,-544.632771,8.219e-05,2]
[420710871,1776475844708,-500.0,8.219e-05,2]
[420710872,1776475844718,-500.0,8.219e-05,2]
[420710873,1776475844727,-500.0,8.219e-05,2]
[420710874,1776475844737,-223.92353876,8.219e-05,2]
[420710875,1776475844746,-813.45,8.219e-05,2]